bitfinex-derivatives/quotes_SOLF0:USTF0_20250202
["timestamp","ask_amount","ask_price","bid_price","bid_amount"]
[1738533704329,0.03381605,203.63,203.47,2.7801]
[1738533704531,3.94,203.62,203.47,2.7801]
[1738533704922,6.4645,203.62,203.47,2.7801]
[1738533705228,41.04271151,203.56,203.4,2.6017]
[1738533705628,41.04271151,203.61,203.4,2.6017]
[1738533705828,0.03462489,203.5,203.46,0.03284725]
[1738533706225,4.9157,203.48,203.46,0.03284725]
[1738533706422,4.9157,203.48,203.38,41.04271151]
[1738533706423,3.94,203.51,203.34,46.27781151]
[1738533706627,4.917,203.43,203.34,46.27781151]
[1738533706925,0.03388898,203.49,203.45,0.03579187]
[1738533707128,4.9176,203.4,203.34,46.27781151]
[1738533707328,2.7632,203.5,203.34,46.27781151]
[1738533707630,0.03302569,203.49,203.45,0.03372043]
[1738533707831,0.03302569,203.49,203.34,5.2351]
[1738533708132,5.4985,203.5,203.34,5.2351]
[1738533708334,5.4985,203.5,203.34,46.27781151]
[1738533708928,41.04271151,203.49,203.33,2.5568]
[1738533709145,41.04271151,203.41,203.22,46.09111151]
[1738533709325,3.94,203.4,203.23,2.6921]
[1738533710031,4.918,203.39,203.26,41.04271151]
[1738533710227,0.98289758,203.48,203.23,2.6921]
[1738533710228,4.92289758,203.48,203.28,41.04271151]
[1738533710434,3.94,203.48,203.35,41.04271151]
[1738533710628,3.94,203.56,203.39,41.04271151]
[1738533710828,2.6806,203.6,203.43,41.04271151]
[1738533711028,44.98271151,203.62,203.47,41.04271151]
[1738533711029,3.94,203.62,203.47,41.04271151]
[1738533711225,4.9131,203.59,203.47,41.04271151]
[1738533711425,3.94,203.62,203.51,41.04271151]
[1738533711628,4.9134,203.58,203.51,41.04271151]
[1738533711835,2.242,203.67,203.51,41.04271151]
[1738533712035,41.04271151,203.76,203.59,41.04271151]
[1738533712337,4.9103,203.71,203.59,41.04271151]
[1738533712529,3.94,203.76,203.6,2.1385]
[1738533712832,0.03398198,203.7,203.65,0.03422289]
[1738533715335,3.94,203.82,203.65,0.03422289]
[1738533715837,3.94,203.82,203.63,41.04271151]
[1738533716538,0.03461745,203.75,203.7,0.03240835]
[1738533716739,0.03461745,203.75,203.71,41.04271151]
[1738533716936,3.94,203.89,203.71,41.04271151]
[1738533717133,4.9069,203.85,203.72,2.1411]
[1738533717337,3.94,203.89,203.72,2.1411]
[1738533718141,0.03341804,203.83,203.78,0.03649202]
[1738533719039,4.908,203.8,203.78,0.03649202]
[1738533719242,0.03341804,203.83,203.78,0.03649202]
[1738533720544,4.908,203.8,203.78,0.03649202]
[1738533720742,0.03341804,203.83,203.78,0.03649202]
[1738533722446,4.908,203.8,203.78,0.03649202]
[1738533722645,0.03341804,203.83,203.78,0.03649202]
[1738533722948,97.26,204.0,203.78,0.03649202]
[1738533722949,44.98271151,203.98,203.78,0.03649202]
[1738533723242,3.94,203.98,203.81,41.04271151]
[1738533723435,4.9056,203.9,203.81,41.04271151]
[1738533723640,4.1495,203.99,203.81,41.04271151]
[1738533723837,4.1495,203.99,203.85,41.04271151]
[1738533724037,1.9504,203.99,203.85,41.04271151]
[1738533724238,0.03777168,203.92,203.88,0.03115001]
[1738533724643,4.9043,203.96,203.85,41.04271151]
[1738533724946,0.0312554,203.92,203.88,0.03554124]
[1738533725147,4.9036,203.98,203.88,0.03554124]
[1738533725352,44.98271151,204.06,203.86,2.1511]
[1738533725742,3.94,204.06,203.89,41.04271151]
[1738533725949,3.94,204.06,203.9,2.0532]
[1738533726345,0.03237534,204.0,203.96,0.0338229]
[1738533727653,4.9036,203.98,203.96,0.0338229]
[1738533728746,0.03237534,204.0,203.86,2.1511]
[1738533729143,4.9042,203.96,203.86,2.1511]
[1738533729853,5.8904,204.07,203.89,41.04271151]
[1738533730052,1.9504,204.07,203.89,41.07471925]
[1738533730249,1.9504,204.07,203.9,4.0192]
[1738533730649,4.9034,203.99,203.9,4.0192]
[1738533730856,1.9504,204.07,203.9,4.0192]
[1738533731153,4.9034,203.99,203.9,4.0192]
[1738533731348,1.9504,204.07,203.9,4.0192]
[1738533731654,0.03109624,204.01,203.96,0.03097511]
[1738533731850,1.9504,204.07,203.96,0.03097511]
[1738533732047,41.04271151,204.2,203.97,41.04271151]
[1738533732253,4.8996,204.15,204.05,41.04271151]
[1738533732451,41.04271151,204.28,204.09,41.04271151]
[1738533732749,4.8989,204.18,204.1,2.1052]
[1738533732953,3.94,204.26,204.1,2.1052]
[1738533733353,4.8996,204.15,204.1,2.1052]
[1738533733553,0.03646237,204.2,204.1,2.1052]
[1738533733757,41.04271151,204.19,204.06,2.1112]
[1738533733960,4.9005,204.11,204.1,0.03378705]
[1738533734158,41.04271151,204.19,203.98,6.2995]
[1738533734159,3.94,204.15,203.98,6.2995]
[1738533734354,1.9714,204.14,203.98,6.2995]
[1738533735056,3.94,204.16,203.98,6.2995]
[1738533735256,4.9005,204.12,203.98,6.2995]
[1738533735459,41.04271151,204.31,204.08,41.04271151]
[1738533735655,2.86672852,204.3,204.09,2.0276]
[1738533735858,41.04271151,204.27,204.09,2.0276]
[1738533736053,0.03544803,204.22,204.04,41.04271151]
[1738533736263,0.03544803,204.22,203.98,4.1943]
[1738533736264,4.9014,204.08,203.99,2.0276]
[1738533736752,4.8992,204.17,204.05,41.04271151]
[1738533737057,0.97938396,204.21,204.09,41.04271151]
[1738533737856,4.8991,204.17,204.09,41.04271151]
[1738533738059,3.94,204.24,204.09,41.04271151]
[1738533738259,0.03268837,204.17,204.13,0.0328523]
[1738533739363,3.94,204.26,204.13,41.07556381]
[1738533739559,41.04271151,204.31,204.13,41.07556381]
[1738533739753,44.98271151,204.31,204.13,41.04271151]
[1738533740263,41.04271151,204.35,204.13,41.04271151]
[1738533740458,3.94,204.34,204.17,41.04271151]
[1738533740763,0.03179185,204.24,204.2,0.0349046]
[1738533741163,3.94,204.34,204.17,41.04271151]
[1738533741657,4.2674,204.36,204.17,41.04271151]
[1738533741658,0.03542576,204.24,204.2,0.03191302]
[1738533741857,3.94,204.42,204.21,41.04271151]
[1738533742062,6.0534,204.46,204.27,41.04271151]
[1738533742358,3.94,204.63,204.35,41.04271151]
[1738533742559,4.892,204.47,204.36,2.0353]
[1738533742769,4.1493,204.59,204.36,2.0353]
[1738533742964,41.04271151,204.54,204.36,2.0353]
[1738533743367,41.04271151,204.54,204.43,0.03250249]
[1738533743566,4.891,204.51,204.43,0.03250249]
[1738533743762,41.04271151,204.54,204.43,0.03250249]
[1738533743968,43.15611151,204.63,204.43,41.075214]
[1738533744266,2.1134,204.63,204.43,41.04271151]
[1738533744469,2.1134,204.63,204.44,2.0041]
[1738533744672,43.15611151,204.63,204.51,0.03244235]
[1738533745168,3.94,204.72,204.51,0.03244235]
[1738533745169,53.6771354,205.0,204.51,0.03244235]
[1738533745371,330.95343642,205.32,204.64,14.84]
[1738533745572,1.9582,205.31,205.11,40.63141034]
[1738533745768,1.9582,205.31,205.09,40.63141034]
[1738533745973,4.874,205.22,205.14,40.63141034]
[1738533746267,1.9582,205.31,205.14,40.63141034]
[1738533746667,4.8758,205.15,205.13,0.03171463]
[1738533746970,40.63141034,205.33,205.13,0.03171463]
[1738533747269,0.97408922,205.32,205.2,40.63141034]
[1738533747570,4.0394,205.43,205.21,0.03668933]
[1738533747773,4.8717,205.32,205.25,40.63141034]
[1738533747968,4.0394,205.43,205.31,440.59093287]
[1738533748169,40.63141034,205.7,205.32,40.63141034]
[1738533748370,14.84,205.51,205.31,440.59093287]
[1738533748668,40.63141034,205.47,205.31,440.59093287]
[1738533748866,4.8697,205.4,205.39,0.03723549]
[1738533750370,4.8709,205.35,205.34,271.81254094]
[1738533750570,4.8709,205.35,205.34,127.07024094]
[1738533750875,4.8714,205.33,205.32,4.37220041]
[1738533751071,40.63141034,205.37,205.27,371.31246225]
[1738533751473,4.8726,205.28,205.27,371.31246225]
[1738533751667,4.8726,205.28,205.27,365.13806225]
[1738533751873,4.8726,205.28,205.27,335.6643163]
[1738533752074,4.873,205.26,205.25,0.03622121]
[1738533752368,4.873,205.26,205.15,40.63141034]
[1738533752569,0.03572709,205.3,205.15,40.63141034]
[1738533752769,5.54,205.36,205.23,0.03717708]
[1738533752974,4.8737,205.24,205.23,0.03717708]
[1738533753176,40.63141034,205.45,205.19,40.63141034]
[1738533753177,0.03538102,205.25,205.19,40.63141034]
[1738533753376,4.8703,205.38,205.23,40.63141034]
[1738533753677,41.60464634,205.5,205.3,40.63141034]
[1738533753970,0.973236,205.5,205.31,40.63141034]
[1738533754177,0.973236,205.5,205.35,40.63141034]
[1738533754584,0.973236,205.5,205.4,0.03560022]
[1738533754776,41.60464634,205.5,205.4,0.03560022]
[1738533754975,4.8695,205.41,205.4,0.03560022]
[1738533755171,46.15141034,205.42,205.27,2.1375]
[1738533755375,46.15141034,205.42,205.18,40.63141034]
[1738533755376,40.63141034,205.38,205.18,40.63141034]
[1738533755571,40.63141034,205.38,205.16,4.1855]
[1738533755873,40.12159493,205.34,205.16,2.1375]
[1738533756075,40.63141034,205.37,205.16,2.1375]
[1738533756379,40.63141034,205.31,205.11,1.9325]
[1738533756578,4.8756,205.16,205.05,2.048]
[1738533756879,40.63141034,205.37,204.94,2.1375]
[1738533756880,40.63141034,205.19,205.0,40.63141034]
[1738533757077,4.8777,205.07,204.96,40.63141034]
[1738533757275,40.63141034,205.15,204.96,40.63141034]
[1738533757476,40.63141034,205.26,205.04,40.63141034]
[1738533757673,4.8746,205.2,205.04,40.63141034]
[1738533757869,0.03654773,205.17,205.13,0.03622814]
[1738533758175,40.63141034,205.34,205.13,0.03622814]
[1738533758379,0.97404178,205.33,205.12,40.63141034]
[1738533758578,40.63141034,205.26,205.04,40.63141034]
[1738533758777,4.8756,205.16,205.04,40.63141034]
[1738533759073,0.97442143,205.25,205.04,40.63141034]
[1738533759377,4.8737,205.24,205.13,40.63141034]
[1738533759577,0.97442143,205.25,205.13,40.63141034]
[1738533759873,40.63141034,205.59,205.22,40.63141034]
[1738533760070,5.5,205.56,205.27,40.63141034]
[1738533760377,0.97366243,205.41,205.19,40.63141034]
[1738533760574,40.63141034,205.39,205.19,40.63141034]
[1738533760770,0.97380465,205.38,205.19,40.63141034]
[1738533760983,0.97380465,205.38,205.23,40.63141034]
[1738533761180,0.97380465,205.38,205.27,0.03145798]
[1738533762078,0.97380465,205.38,205.27,40.66286832]
[1738533762377,5.48,205.51,205.31,40.63141034]
[1738533762577,40.63141034,205.48,205.27,0.03145798]
[1738533762896,40.63141034,205.48,205.26,40.63141034]
[1738533763079,4.8713,205.34,205.32,0.03469924]
[1738533763773,4.8713,205.34,205.32,9.924e-05]
[1738533764880,0.58528455,205.42,205.32,9.924e-05]
[1738533765179,0.03485077,205.35,205.32,9.924e-05]
[1738533765770,0.58528455,205.42,205.32,9.924e-05]
[1738533765771,40.20742725,205.39,205.32,9.924e-05]
[1738533765971,4.8714,205.33,205.32,9.924e-05]
[1738533766172,0.58528455,205.42,205.32,9.924e-05]
[1738533767279,4.8712,205.34,205.32,9.924e-05]
[1738533768781,4.8752,205.17,205.16,4.0537]
[1738533768983,4.8752,205.17,205.16,1.9364]
[1738533769381,5.44,205.36,205.05,1.9706]
[1738533769577,40.63141034,205.26,205.06,2.0196]
[1738533769776,40.63141034,205.22,205.06,2.0196]
[1738533770084,46.03141034,205.22,205.15,3.92e-06]
[1738533770280,40.63141034,205.18,205.15,3.92e-06]
[1738533770583,4.8754,205.16,205.15,3.92e-06]
[1738533770884,40.63141034,205.18,204.97,2.001]
[1738533771076,4.8789,205.02,204.97,2.001]
[1738533771281,40.63141034,205.16,204.97,42.63241034]
[1738533771585,4.8757,205.15,205.05,40.63141034]
[1738533771779,40.63141034,205.26,205.05,40.63141034]
[1738533771980,40.63141034,205.3,205.09,40.63141034]
[1738533772179,0.88729971,205.29,205.13,40.63141034]
[1738533772484,137.17141034,205.41,205.21,40.63141034]
[1738533772781,0.88690945,205.4,205.21,40.63141034]
[1738533772980,137.17141034,205.41,205.25,40.63141034]
[1738533772981,96.54,205.41,205.25,40.63141034]
[1738533773181,4.8701,205.39,205.29,0.03329589]
[1738533773382,96.54,205.41,205.29,0.03329589]
[1738533773581,96.54,205.41,205.29,1.71329589]
[1738533773978,4.8708,205.36,205.29,1.71329589]
[1738533774183,0.58528455,205.42,205.29,1.71329589]
[1738533774583,0.58528455,205.42,205.29,1.68]
[1738533775084,4.871,205.35,205.33,0.03084726]
[1738533776883,0.58528455,205.42,205.33,0.03084726]
[1738533777487,4.871,205.35,205.33,0.03084726]
[1738533778182,4.871,205.35,205.33,4.726e-05]
[1738533778782,4.8751,205.18,205.16,4.1047]
[1738533779088,40.63141034,205.26,205.05,1.9314]
[1738533779782,0.88729878,205.25,205.05,1.9314]
[1738533779985,0.03442464,205.18,205.13,0.03160824]
[1738533780181,40.66583498,205.18,205.13,0.03160824]
[1738533780387,40.66583498,205.18,205.13,8.24e-06]
[1738533780784,4.8759,205.14,205.13,8.24e-06]
[1738533781087,45.50731034,205.14,205.13,8.24e-06]
[1738533781288,4.8797,204.98,204.95,1.9314]
[1738533781588,40.63141034,205.09,204.95,1.9314]
[1738533781786,40.63141034,205.05,204.75,5.28]
[1738533781990,40.63141034,205.13,204.94,40.63141034]
[1738533782386,4.8801,204.97,204.94,40.63141034]
[1738533782587,0.03591628,205.06,205.01,4.31e-05]
[1738533782891,40.63141034,205.05,204.83,3.9733]
[1738533783191,0.88832133,205.04,205.01,256.60011104]
[1738533783382,96.5,205.14,205.01,256.60011104]
[1738533783581,0.8878804,205.13,205.01,256.60011104]
[1738533783785,0.88781282,205.14,205.12,613.55910121]
[1738533783986,96.10282068,205.15,205.06,643.91590031]
[1738533784191,40.63141034,205.08,205.06,614.21340031]
[1738533784593,4.8776,205.07,205.06,614.07930224]
[1738533784791,60.34901034,205.07,205.06,473.170697]
[1738533784984,4.8776,205.07,205.06,462.232697]
[1738533785389,4.8776,205.07,205.06,422.402697]
[1738533785588,45.50901034,205.07,205.06,422.402697]
[1738533785990,19.7176,205.07,205.06,408.930797]
[1738533786190,60.34901034,205.07,205.06,365.925897]
[1738533786391,684.8186726,205.07,205.06,270.83079892]
[1738533786720,694.7210726,205.07,205.01,222.72370434]
[1738533786896,60.35011034,205.02,205.01,222.72370434]
[1738533787090,65.61011034,205.02,205.01,183.85990434]
[1738533787392,75.51141034,205.02,204.95,333.0032638]
[1738533787591,19.7202,204.96,204.95,286.87861094]
[1738533787791,60.35161034,204.96,204.95,286.87861094]
[1738533787984,60.35161034,204.96,204.95,277.63741094]
[1738533788189,50.75161034,204.96,204.95,277.63741094]
[1738533788493,50.75161034,204.96,204.95,243.44111094]
[1738533788696,50.75161034,204.96,204.95,231.45001094]
[1738533789093,50.75161034,204.96,204.95,120.80896526]
[1738533789294,50.73161034,204.96,204.95,120.80896526]
[1738533789695,45.85141034,204.96,204.89,333.0032638]
[1738533789891,45.51301034,204.9,204.89,261.12276582]
[1738533790200,10.1016,204.9,204.89,205.44415912]
[1738533790393,10.1016,204.9,204.89,204.16755912]
[1738533790595,11.07768589,204.9,204.89,204.16755912]
[1738533792396,11.05768589,204.9,204.89,204.16755912]
[1738533792597,5.85768589,204.9,204.89,204.16755912]
[1738533792793,11.05768589,204.9,204.89,204.16755912]
[1738533793396,11.05768589,204.9,204.89,11.44275668]
[1738533793795,21.01608589,204.9,204.87,0.0317768]
[1738533794102,40.63141034,204.88,204.8,399.60391656]
[1738533794304,0.97622882,204.87,204.8,399.60391656]
[1738533794705,5.18,204.86,204.8,399.60391656]
[1738533794905,5.18,204.85,204.8,399.60391656]
[1738533795203,5.18,204.84,204.81,0.03303513]
[1738533795802,0.97641946,204.83,204.81,0.03303513]
[1738533796700,0.97641946,204.83,204.8,206.91214925]
[1738533797003,14.84,204.81,204.8,155.80710357]
[1738533797198,0.97641946,204.83,204.8,66.00354401]
[1738533797399,14.84,204.81,204.8,66.00354401]
[1738533797599,14.84,204.81,204.68,399.60391656]
[1738533797895,40.63141034,204.76,204.68,399.60391656]
[1738533798095,0.97680097,204.75,204.68,399.60391656]
[1738533798295,0.97680097,204.75,204.72,0.03589953]
[1738533798497,55.41141034,204.73,204.72,0.03589953]
[1738533798703,70.25141034,204.73,204.72,0.03589953]
[1738533799206,71.14146867,204.73,204.72,0.03589953]
[1738533799404,108.71893835,204.73,204.68,394.69091656]
[1738533799604,0.97694411,204.72,204.68,394.69091656]
[1738533800105,14.84,204.71,204.68,394.69091656]
[1738533800308,6.13703957,204.7,204.68,394.69091656]
[1738533800703,0.9770873,204.69,204.68,394.69091656]
[1738533801205,0.9770873,204.69,204.68,395.67091656]
[1738533801399,5.14,204.75,204.68,395.67091656]
[1738533801601,5.14,204.75,204.7,40.63141034]
[1738533801804,122.8695936,204.69,204.68,395.67091656]
[1738533802001,119.8646936,204.69,204.68,395.67091656]
[1738533802409,119.8646936,204.69,204.68,394.69091656]
[1738533802605,134.7046936,204.69,204.68,363.92771656]
[1738533803010,119.8646936,204.69,204.68,363.92771656]
[1738533803307,94.4362936,204.69,204.68,363.92771656]
[1738533803708,67.3929936,204.69,204.68,363.92771656]
[1738533804109,66.4129936,204.69,204.68,363.92771656]
[1738533804612,5.14,204.88,204.68,404.5591269]
[1738533804807,5.14,204.93,204.74,40.63141034]
[1738533805009,5.14,204.93,204.78,40.63141034]
[1738533805221,5.14,205.02,204.85,40.63141034]
[1738533805615,40.63141034,205.01,204.81,40.63141034]
[1738533805920,0.03627747,204.96,204.91,0.03361009]
[1738533806114,408.83137096,205.07,204.91,0.03361009]
[1738533806115,408.83137096,205.07,204.95,40.63141034]
[1738533806310,408.83137096,205.07,204.83,96.76]
[1738533806525,408.83137096,205.07,204.96,40.63141034]
[1738533806727,408.83137096,205.07,204.92,40.63141034]
[1738533807733,0.03264238,205.02,204.97,0.03742512]
[1738533807937,0.03264238,205.02,205.0,40.63141034]
[1738533808236,0.03264238,205.02,204.97,0.03742512]
[1738533808633,0.03264238,205.02,204.95,40.63141034]
[1738533809037,436.07941736,205.06,204.91,40.63141034]
[1738533809448,504.17404218,205.01,204.91,40.63141034]
[1738533809836,504.17404218,205.01,204.83,33.64675394]
[1738533809837,0.03381126,204.98,204.94,0.03256648]
[1738533810842,0.03381126,204.98,204.8,40.63141034]
[1738533811035,40.63141034,204.95,204.76,40.63141034]
[1738533811235,44.39131034,204.99,204.76,40.63141034]
[1738533811435,5.12,204.98,204.8,40.63141034]
[1738533811640,27.2480464,204.97,204.8,40.63141034]
[1738533811836,40.63141034,204.95,204.76,40.63141034]
[1738533812037,40.63141034,204.91,204.71,40.63141034]
[1738533812237,40.6677348,204.91,204.71,40.63141034]
[1738533812638,40.63141034,204.91,204.71,40.63141034]
[1738533812835,40.63141034,204.87,204.68,363.92771656]
[1738533813345,40.63141034,204.83,204.68,363.92771656]
[1738533813547,40.63141034,204.79,204.68,363.92771656]
[1738533813845,40.63141034,204.75,204.68,363.92771656]
[1738533814239,7.0708,204.78,204.68,363.92771656]
[1738533814435,40.63141034,204.75,204.68,363.92771656]
[1738533814845,40.63141034,204.76,204.68,363.92771656]
[1738533815046,0.03674621,204.74,204.69,0.03139672]
[1738533815543,72.91073931,204.74,204.68,363.92771656]
[1738533815736,40.63141034,204.72,204.68,347.57713962]
[1738533816139,40.63141034,204.72,204.68,341.56743962]
[1738533816348,40.63141034,204.72,204.68,335.55783962]
[1738533816545,27.2480464,204.73,204.68,335.55783962]
[1738533816943,27.2480464,204.73,204.68,335.59206175]
[1738533817144,40.63141034,204.72,204.68,335.59206175]
[1738533817540,40.63141034,204.71,204.68,127.84225931]
[1738533817746,40.63141034,204.71,204.68,29.05409975]
[1738533819445,40.63141034,204.71,204.68,24.14109975]
[1738533819647,40.63141034,204.71,204.56,399.60391656]
[1738533819846,40.63141034,204.62,204.56,399.60391656]
[1738533820051,40.63141034,204.58,204.56,399.60391656]
[1738533820344,5.06,204.57,204.56,231.02021387]
[1738533820550,5.06,204.57,204.56,179.91516819]
[1738533820940,6.03766045,204.57,204.56,179.91516819]
[1738533821345,0.97766045,204.57,204.56,179.91516819]
[1738533821541,83.79299498,204.57,204.56,179.91516819]
[1738533821747,80.78539498,204.57,204.56,179.91516819]
[1738533822752,68.75509498,204.57,204.56,179.91516819]
[1738533822949,59.74249498,204.57,204.56,179.91516819]
[1738533823145,171.4376665,204.57,204.56,179.91516819]
[1738533826259,5.02,204.74,204.56,179.91516819]
[1738533826445,5.02,204.74,204.56,184.80476819]
[1738533826645,5.02,204.74,204.56,179.91516819]
[1738533827054,5.02,204.74,204.56,184.80466819]
[1738533827355,0.03558182,204.67,204.63,0.03202684]
[1738533827652,0.03558182,204.67,204.63,45.55143718]
[1738533827860,0.03558182,204.67,204.6,40.63141034]
[1738533828057,0.03558182,204.67,204.56,179.91516819]
[1738533828058,0.03558182,204.67,204.56,220.54657853]
[1738533828358,0.03558182,204.67,204.56,179.91516819]
[1738533828852,0.03558182,204.67,204.57,4.8895]
[1738533829057,0.03558182,204.67,204.59,0.03735742]
[1738533829560,26.4516118,204.66,204.59,0.03735742]
[1738533829759,26.4516118,204.66,204.56,179.91516819]
[1738533830660,26.4516118,204.65,204.56,179.91516819]
[1738533830960,26.4516118,204.65,204.59,0.03663511]
[1738533831359,4.879e-05,204.63,204.6,40.63141034]
[1738533831562,4.879e-05,204.63,204.62,4.8883]
[1738533831758,2.05068952,204.65,204.6,40.63141034]
[1738533832059,8.952e-05,204.65,204.64,45.51921034]
[1738533832654,4.8847,204.78,204.68,4.8868]
[1738533832858,4.98,204.84,204.64,40.63141034]
[1738533833058,0.03549025,204.75,204.64,40.63141034]
[1738533833258,0.03549025,204.75,204.72,0.03280799]
[1738533833660,0.03549025,204.75,204.72,40.63141034]
[1738533833865,0.03549025,204.75,204.74,4.8854]
[1738533834059,0.03549025,204.75,204.72,40.63141034]
[1738533834359,0.03549025,204.75,204.74,4.8854]
[1738533834762,0.03549025,204.75,204.72,40.63141034]
[1738533834964,0.03549025,204.75,204.71,0.03663752]
[1738533835162,0.03549025,204.75,204.72,40.63141034]
[1738533835365,0.03549025,204.75,204.73,4.8856]
[1738533836267,3.7292,205.0,204.82,4.8834]
[1738533836562,4.8823,204.87,204.79,40.63141034]
[1738533836760,40.63141034,204.94,204.75,40.63141034]
[1738533837062,40.63141034,204.94,204.74,138.43668806]
[1738533837264,40.63141034,204.9,204.77,79.82523935]
[1738533837472,0.03602161,204.86,204.82,0.03441799]
[1738533838263,0.03602161,204.86,204.74,46.14556269]
[1738533838264,40.63141034,204.85,204.74,46.14556269]
[1738533838567,40.63141034,204.81,204.74,46.14556269]
[1738533838762,4.883,204.85,204.74,46.14556269]
[1738533838960,40.63141034,204.89,204.74,46.14556269]
[1738533838961,4.94,204.87,204.74,46.14556269]
[1738533839373,4.94,204.87,204.71,40.63141034]
[1738533839570,0.03116983,204.83,204.78,0.030899]
[1738533839863,0.03116983,204.83,204.78,4.915299]
[1738533840169,0.03116983,204.83,204.78,0.030899]
[1738533841560,40.63141034,204.81,204.63,40.63141034]
[1738533841769,40.63141034,204.77,204.6,79.82523935]
[1738533841963,40.63141034,204.81,204.6,79.82523935]
[1738533842157,40.63141034,204.81,204.63,40.63141034]
[1738533842359,40.63141034,204.85,204.63,40.63141034]
[1738533842569,4.8838,204.81,204.71,4.8861]
[1738533842771,4.92,204.84,204.63,40.63141034]
[1738533843075,4.8857,204.73,204.72,0.03673721]
[1738533843266,0.03320655,204.76,204.56,220.54657853]
[1738533843472,40.63141034,204.73,204.56,179.91516819]
[1738533844166,55.47141034,204.82,204.56,179.91516819]
[1738533844167,4.8885,204.61,204.56,179.91516819]
[1738533844464,45.53141034,204.61,204.56,179.91516819]
[1738533844865,40.63141034,204.57,204.56,154.5522234]
[1738533845060,40.63141034,204.57,204.43,79.82523935]
[1738533845869,4.8912,204.5,204.43,79.82523935]
[1738533846076,0.03346012,204.52,204.43,79.82523935]
[1738533846572,0.03346012,204.52,204.38,473.53565328]
[1738533846869,40.63141034,204.64,204.42,40.63141034]
[1738533847167,4.9,204.63,204.46,40.63141034]
[1738533847672,4.9,204.63,204.5,40.63141034]
[1738533847873,45.53141034,204.63,204.47,1.8311]
[1738533848067,40.63141034,204.59,204.47,1.8311]
[1738533848268,40.66662202,204.59,204.54,0.03584648]
[1738533848670,40.63141034,204.59,204.39,3.7845]
[1738533848870,4.891,204.51,204.39,3.7845]
[1738533849169,40.63141034,204.59,204.47,0.03738255]
[1738533849369,4.8915,204.49,204.47,0.03738255]
[1738533849671,4.88,204.5,204.47,0.03738255]
[1738533849867,4.91221947,204.5,204.39,1.8311]
[1738533850173,4.91221947,204.5,204.46,0.03695548]
[1738533850468,4.8914,204.49,204.46,0.03695548]
[1738533850867,4.91221947,204.5,204.46,0.03695548]
[1738533851271,4.91221947,204.5,204.38,432.90424294]
[1738533851471,40.63141034,204.47,204.38,432.90424294]
[1738533852272,4.8936,204.4,204.38,432.90424294]
[1738533852571,40.63141034,204.39,204.38,429.89534294]
[1738533852868,40.63141034,204.39,204.38,423.91424294]
[1738533853373,40.63141034,204.39,204.38,193.5345405]
[1738533853570,40.63141034,204.39,204.38,189.0168405]
[1738533854473,4.89363601,204.41,204.38,189.0168405]
[1738533854870,0.03363601,204.41,204.38,189.0168405]
[1738533855069,4.86,204.4,204.38,189.0168405]
[1738533855367,45.49141034,204.4,204.38,189.0168405]
[1738533855571,4.86,204.4,204.38,189.0168405]
[1738533856474,0.03363601,204.41,204.38,189.0168405]
[1738533856870,4.86,204.49,204.38,189.0168405]
[1738533857069,40.63141034,204.56,204.38,189.0168405]
[1738533857276,4.86,204.55,204.38,189.0168405]
[1738533857471,4.86,204.55,204.41,4.8932]
[1738533857775,4.86,204.54,204.39,40.63141034]
[1738533858371,0.0348355,204.49,204.44,0.03687779]
[1738533858675,40.63141034,204.6,204.39,40.63141034]
[1738533858676,4.84,204.54,204.39,40.63141034]
[1738533858874,0.69872142,204.56,204.47,40.63141034]
[1738533859073,11.8176857,204.58,204.51,40.63141034]
[1738533859267,8.8108857,204.58,204.51,40.63141034]
[1738533859473,40.63141034,204.75,204.55,40.63141034]
[1738533859776,4.84,204.74,204.55,6.48458992]
[1738533860071,0.03339219,204.67,204.63,0.03503058]
[1738533860577,4.84,204.76,204.63,0.03503058]
[1738533860775,148.95108,204.74,204.63,0.03503058]
[1738533861074,148.95108,204.74,204.61,40.63141034]
[1738533861477,145.94378,204.74,204.65,40.63141034]
[1738533861672,136.98968,204.74,204.69,4.8864]
[1738533861875,136.98968,204.74,204.65,40.63141034]
[1738533862178,130.97658,204.74,204.65,40.63141034]
[1738533862373,5.655e-05,204.72,204.69,40.63141034]
[1738533862974,5.655e-05,204.72,204.67,0.03137791]
[1738533864072,5.655e-05,204.72,204.68,40.63141034]
[1738533864577,53.35981203,204.87,204.8,4.8839]
[1738533864777,53.35981203,204.87,204.81,40.63141034]
[1738533865075,53.35981203,204.87,204.69,40.63141034]
[1738533865377,40.63141034,204.85,204.6,40.63141034]
[1738533865573,40.63141034,204.85,204.65,40.63141034]
[1738533865777,0.03703227,204.75,204.7,0.03306789]
[1738533866277,4.8,204.79,204.61,40.63141034]